[Event "Late-Titled-Tuesday-Blitz-February-20-2024"]
[Site "Chess.com"]
[Date "2024.02.20"]
[Round "2"]
[White "jactorres"]
[Black "vrekhson"]
[Result "0-1"]
[WhiteElo "2441"]
[BlackElo "2257"]
[TimeControl "180+1"]
[EndTime "14:17:17 PST"]
[Termination "vrekhson won on time"]

1. e4 {[%clk 0:02:55.5]} 1... c5 {[%clk 0:02:54]} 2. Nf3 {[%clk 0:02:52.1]} 2...
a6 {[%clk 0:02:53.4]} 3. d4 {[%clk 0:02:52]} 3... cxd4 {[%clk 0:02:54.3]} 4.
Nxd4 {[%clk 0:02:52.2]} 4... Nf6 {[%clk 0:02:54.7]} 5. Nc3 {[%clk 0:02:51.9]}
5... e5 {[%clk 0:02:54.9]} 6. Nb3 {[%clk 0:02:49.9]} 6... Bb4 {[%clk 0:02:51.2]}
7. Bd3 {[%clk 0:02:47.4]} 7... d5 {[%clk 0:02:48.6]} 8. exd5 {[%clk 0:02:43.7]}
8... Nxd5 {[%clk 0:02:49.5]} 9. Bd2 {[%clk 0:02:41.7]} 9... Nxc3 {[%clk
0:02:49.5]} 10. bxc3 {[%clk 0:02:40.5]} 10... Bd6 {[%clk 0:02:49.3]} 11. O-O
{[%clk 0:02:40]} 11... Qh4 {[%clk 0:02:48.4]} 12. Qf3 {[%clk 0:02:15.8]} 12...
O-O {[%clk 0:02:41.3]} 13. Qe4 {[%clk 0:02:09.8]} 13... Qxe4 {[%clk 0:02:38.3]}
14. Bxe4 {[%clk 0:02:10]} 14... Nc6 {[%clk 0:02:34.4]} 15. Rad1 {[%clk
0:02:04.1]} 15... Be6 {[%clk 0:02:33.3]} 16. Be3 {[%clk 0:01:57.8]} 16... Be7
{[%clk 0:02:18.2]} 17. a4 {[%clk 0:01:31.3]} 17... Rac8 {[%clk 0:02:14.7]} 18.
Nc5 {[%clk 0:01:26.1]} 18... Bxc5 {[%clk 0:02:13.1]} 19. Bxc5 {[%clk 0:01:25.4]}
19... Rfd8 {[%clk 0:02:14]} 20. Bb6 {[%clk 0:01:20.5]} 20... Rxd1 {[%clk
0:02:06.8]} 21. Rxd1 {[%clk 0:01:21.4]} 21... f5 {[%clk 0:02:06.6]} 22. Bd5
{[%clk 0:00:55.5]} 22... Kf7 {[%clk 0:02:03.3]} 23. c4 {[%clk 0:00:48.1]} 23...
Kf6 {[%clk 0:01:45.9]} 24. c3 {[%clk 0:00:36.9]} 24... g5 {[%clk 0:01:34.4]} 25.
Bxe6 {[%clk 0:00:34.3]} 25... Kxe6 {[%clk 0:01:34.2]} 26. c5 {[%clk 0:00:34]}
26... Re8 {[%clk 0:01:25.9]} 27. Rd6+ {[%clk 0:00:32.1]} 27... Kf7 {[%clk
0:01:24.5]} 28. Kf1 {[%clk 0:00:19.3]} 28... Re6 {[%clk 0:01:20.5]} 29. Rd7+
{[%clk 0:00:18.7]} 29... Re7 {[%clk 0:01:20.4]} 30. Rd6 {[%clk 0:00:16]} 30...
e4 {[%clk 0:01:16.8]} 31. Ke2 {[%clk 0:00:15.6]} 31... Ne5 {[%clk 0:01:12]} 32.
Rh6 {[%clk 0:00:12.2]} 32... Kg7 {[%clk 0:01:07.8]} 33. Rd6 {[%clk 0:00:05.2]}
33... f4 {[%clk 0:01:02.7]} 34. Rd8 {[%clk 0:00:04.6]} 34... Nc4 {[%clk
0:00:57.8]} 35. h3 {[%clk 0:00:01.5]} 35... h5 {[%clk 0:00:55.9]} 36. a5 {[%clk
0:00:01.8]} 36... g4 {[%clk 0:00:55.5]} 37. hxg4 {[%clk 0:00:01.1]} 37... hxg4
{[%clk 0:00:56.4]} 38. Rb8 {[%clk 0:00:01.4]} 38... f3+ {[%clk 0:00:56.3]} 39.
gxf3 {[%clk 0:00:01.2]} 39... exf3+ {[%clk 0:00:56.6]} 40. Kd3 {[%clk
0:00:01.8]} 40... g3 {[%clk 0:00:50.2]} 41. Kxc4 {[%clk 0:00:01.8]} 41... gxf2
{[%clk 0:00:49.3]} 42. c6 {[%clk 0:00:02.4]} 42... f1=Q+ {[%clk 0:00:48.9]} 43.
Kb4 {[%clk 0:00:02.2]} 43... Qb5+ {[%clk 0:00:48.7]} 44. Ka3 {[%clk 0:00:01.9]}
44... Qxc6 {[%clk 0:00:44.6]} 45. Bd4+ {[%clk 0:00:02.5]} 45... Kf7 {[%clk
0:00:41.7]} 46. Rh8 {[%clk 0:00:02.5]} 46... f2 {[%clk 0:00:38.1]} 47. Rh7+
{[%clk 0:00:02.7]} 47... Ke8 {[%clk 0:00:38]} 48. Rh8+ {[%clk 0:00:02.8]} 48...
Kd7 {[%clk 0:00:38]} 49. Rf8 {[%clk 0:00:02.8]} 49... Re2 {[%clk 0:00:33.1]} 50.
Rf7+ {[%clk 0:00:02]} 50... Ke8 {[%clk 0:00:32.9]} 0-1

[Event "Late-Titled-Tuesday-Blitz-February-20-2024"]
[Site "Chess.com"]
[Date "2024.02.20"]
[Round "2"]
[White "jamengrand"]
[Black "MKlose11"]
[Result "0-1"]
[WhiteElo "2332"]
[BlackElo "2612"]
[TimeControl "180+1"]
[EndTime "14:17:20 PST"]
[Termination "MKlose11 won on time"]

1. e4 {[%clk 0:03:00.9]} 1... e6 {[%clk 0:02:58.1]} 2. d4 {[%clk 0:03:00.1]}
2... d5 {[%clk 0:02:59]} 3. e5 {[%clk 0:03:00.4]} 3... c5 {[%clk 0:02:58.8]} 4.
c3 {[%clk 0:03:00.9]} 4... Nc6 {[%clk 0:02:59]} 5. Nf3 {[%clk 0:03:01.3]} 5...
Bd7 {[%clk 0:02:59.3]} 6. Bd3 {[%clk 0:02:58.1]} 6... Qb6 {[%clk 0:02:58.5]} 7.
dxc5 {[%clk 0:02:57.2]} 7... Bxc5 {[%clk 0:02:57.2]} 8. Qe2 {[%clk 0:02:57.4]}
8... a5 {[%clk 0:02:56.5]} 9. Nbd2 {[%clk 0:02:56.5]} 9... a4 {[%clk 0:02:52.7]}
10. b4 {[%clk 0:02:56.5]} 10... axb3 {[%clk 0:02:52.1]} 11. Nxb3 {[%clk
0:02:56.9]} 11... Nge7 {[%clk 0:02:46.2]} 12. O-O {[%clk 0:02:52.2]} 12... Ng6
{[%clk 0:02:44.6]} 13. h4 {[%clk 0:02:49.1]} 13... Ba3 {[%clk 0:02:40.3]} 14. h5
{[%clk 0:02:43.7]} 14... Nge7 {[%clk 0:02:39.4]} 15. Be3 {[%clk 0:02:37.4]}
15... Qc7 {[%clk 0:02:38.9]} 16. h6 {[%clk 0:02:32.4]} 16... g6 {[%clk
0:02:35.9]} 17. Nc5 {[%clk 0:02:06.5]} 17... Nf5 {[%clk 0:02:32.4]} 18. Nxd7
{[%clk 0:02:04.1]} 18... Qxd7 {[%clk 0:02:32.1]} 19. Bb5 {[%clk 0:02:00.3]}
19... Nxe3 {[%clk 0:02:30.5]} 20. fxe3 {[%clk 0:01:57.1]} 20... O-O {[%clk
0:02:23.1]} 21. Nd4 {[%clk 0:01:48.9]} 21... Qc7 {[%clk 0:02:15.5]} 22. Bxc6
{[%clk 0:01:42.9]} 22... bxc6 {[%clk 0:02:15.2]} 23. Nf3 {[%clk 0:01:22.8]}
23... Ra4 {[%clk 0:02:04.6]} 24. Rad1 {[%clk 0:01:14.5]} 24... Be7 {[%clk
0:02:01]} 25. Rd4 {[%clk 0:01:11.7]} 25... Rfa8 {[%clk 0:02:00.3]} 26. Rxa4
{[%clk 0:01:07.8]} 26... Rxa4 {[%clk 0:02:01.2]} 27. Rb1 {[%clk 0:01:06.5]}
27... Bf8 {[%clk 0:01:57.4]} 28. Qc2 {[%clk 0:00:58.7]} 28... Ra8 {[%clk
0:01:52]} 29. c4 {[%clk 0:00:37.8]} 29... Bxh6 {[%clk 0:01:50.2]} 30. Rb3 {[%clk
0:00:21.7]} 30... Qa7 {[%clk 0:01:43.4]} 31. cxd5 {[%clk 0:00:20.6]} 31... cxd5
{[%clk 0:01:42.2]} 32. Qc6 {[%clk 0:00:20.1]} 32... Qxa2 {[%clk 0:01:36.3]} 33.
Rb7 {[%clk 0:00:19.7]} 33... Rf8 {[%clk 0:01:34.2]} 34. Qc5 {[%clk 0:00:17.2]}
34... Qe2 {[%clk 0:01:31.8]} 35. Kh2 {[%clk 0:00:16.3]} 35... Bxe3 {[%clk
0:01:30.7]} 36. Qe7 {[%clk 0:00:16.1]} 36... Bf4+ {[%clk 0:01:29.8]} 37. Kh3
{[%clk 0:00:13.5]} 37... Qf2 {[%clk 0:01:24.4]} 38. Qh4 {[%clk 0:00:12.8]} 38...
Qxh4+ {[%clk 0:01:21.6]} 39. Kxh4 {[%clk 0:00:11.9]} 39... h5 {[%clk 0:01:19.2]}
40. g4 {[%clk 0:00:11.8]} 40... hxg4 {[%clk 0:01:18.4]} 41. Kxg4 {[%clk
0:00:11.9]} 41... Bh6 {[%clk 0:01:16.7]} 42. Nh2 {[%clk 0:00:10.5]} 42... Rd8
{[%clk 0:01:15]} 43. Kf3 {[%clk 0:00:10.5]} 43... d4 {[%clk 0:01:15.1]} 44. Ng4
{[%clk 0:00:11]} 44... Bg7 {[%clk 0:01:13.4]} 45. Ke4 {[%clk 0:00:11.4]} 45...
d3 {[%clk 0:01:13.7]} 46. Rb1 {[%clk 0:00:11.7]} 46... d2 {[%clk 0:01:12.8]} 47.
Rd1 {[%clk 0:00:12]} 47... Kf8 {[%clk 0:01:05.5]} 48. Nh2 {[%clk 0:00:12.2]}
48... Bh6 {[%clk 0:01:04.5]} 49. Nf3 {[%clk 0:00:12]} 49... Ke7 {[%clk
0:01:04.7]} 50. Nh2 {[%clk 0:00:05.9]} 50... Rd5 {[%clk 0:01:01.8]} 51. Nf3
{[%clk 0:00:06.1]} 51... Bg7 {[%clk 0:00:56.9]} 52. Rxd2 {[%clk 0:00:05.4]}
52... Rxd2 {[%clk 0:00:53.7]} 53. Nxd2 {[%clk 0:00:05.5]} 53... Bh6 {[%clk
0:00:53.5]} 54. Nf3 {[%clk 0:00:05.2]} 54... Bc1 {[%clk 0:00:53.8]} 55. Nh2
{[%clk 0:00:05.3]} 55... Kf8 {[%clk 0:00:53.3]} 56. Ng4 {[%clk 0:00:02.3]} 56...
Kg7 {[%clk 0:00:53.5]} 57. Kf3 {[%clk 0:00:01.7]} 57... g5 {[%clk 0:00:52.9]}
58. Ke4 {[%clk 0:00:01.9]} 58... Kg6 {[%clk 0:00:53]} 0-1

[Event "Late-Titled-Tuesday-Blitz-February-20-2024"]
[Site "Chess.com"]
[Date "2024.02.20"]
[Round "2"]
[White "SharathRk6"]
[Black "HamedWafa4"]
[Result "0-1"]
[WhiteElo "2398"]
[BlackElo "2746"]
[TimeControl "180+1"]
[EndTime "14:17:21 PST"]
[Termination "HamedWafa4 won by resignation"]

1. e4 {[%clk 0:02:59.1]} 1... e5 {[%clk 0:02:59.6]} 2. Nf3 {[%clk 0:02:58.7]}
2... Nc6 {[%clk 0:02:58.7]} 3. Bc4 {[%clk 0:02:58.6]} 3... Bc5 {[%clk
0:02:58.2]} 4. c3 {[%clk 0:02:59]} 4... Nf6 {[%clk 0:02:57.5]} 5. d3 {[%clk
0:02:58.6]} 5... O-O {[%clk 0:02:57.3]} 6. O-O {[%clk 0:02:58.8]} 6... d6 {[%clk
0:02:51.5]} 7. a4 {[%clk 0:02:58.5]} 7... a6 {[%clk 0:02:49.7]} 8. Nbd2 {[%clk
0:02:58.3]} 8... Ba7 {[%clk 0:02:47.5]} 9. h3 {[%clk 0:02:58]} 9... h6 {[%clk
0:02:47.1]} 10. Re1 {[%clk 0:02:58.4]} 10... Re8 {[%clk 0:02:47.4]} 11. Nf1
{[%clk 0:02:58.2]} 11... Be6 {[%clk 0:02:47.7]} 12. Bb3 {[%clk 0:02:56.3]} 12...
Bxb3 {[%clk 0:02:43.6]} 13. Qxb3 {[%clk 0:02:54]} 13... Qd7 {[%clk 0:02:44.1]}
14. Be3 {[%clk 0:02:53.7]} 14... Bxe3 {[%clk 0:02:40.8]} 15. Nxe3 {[%clk
0:02:54.1]} 15... Ne7 {[%clk 0:02:40.5]} 16. Rad1 {[%clk 0:02:47.3]} 16... a5
{[%clk 0:02:38.4]} 17. Qc2 {[%clk 0:02:39.1]} 17... Ng6 {[%clk 0:02:35.9]} 18.
Kh2 {[%clk 0:02:24]} 18... d5 {[%clk 0:02:29.4]} 19. exd5 {[%clk 0:02:17.6]}
19... Nxd5 {[%clk 0:02:27.8]} 20. Nxd5 {[%clk 0:02:16.5]} 20... Qxd5 {[%clk
0:02:28.7]} 21. Qe2 {[%clk 0:02:13.7]} 21... Rad8 {[%clk 0:02:25]} 22. Qe4
{[%clk 0:02:12.3]} 22... c6 {[%clk 0:02:20.5]} 23. Qxd5 {[%clk 0:01:43.7]} 23...
cxd5 {[%clk 0:02:21.4]} 24. Rd2 {[%clk 0:01:43.6]} 24... f6 {[%clk 0:02:19.9]}
25. Rde2 {[%clk 0:01:40.3]} 25... Re6 {[%clk 0:02:13.6]} 26. g3 {[%clk
0:01:14.8]} 26... Rb6 {[%clk 0:02:12.9]} 27. Kg2 {[%clk 0:00:56.9]} 27... Rc8
{[%clk 0:02:02.1]} 28. Ng1 {[%clk 0:00:41.9]} 28... Rbc6 {[%clk 0:01:54.8]} 29.
Rd2 {[%clk 0:00:23.4]} 29... Rb8 {[%clk 0:01:53.4]} 30. Ne2 {[%clk 0:00:22]}
30... b5 {[%clk 0:01:50.9]} 31. axb5 {[%clk 0:00:21.9]} 31... Rxb5 {[%clk
0:01:51.8]} 32. Ra1 {[%clk 0:00:19.8]} 32... Rcb6 {[%clk 0:01:51]} 33. Ra2
{[%clk 0:00:19.6]} 33... h5 {[%clk 0:01:47.1]} 34. c4 {[%clk 0:00:20]} 34... Rc5
{[%clk 0:01:41.5]} 35. Nc3 {[%clk 0:00:17.7]} 35... Rb7 {[%clk 0:01:17.8]} 36.
Nxd5 {[%clk 0:00:17.6]} 36... Ne7 {[%clk 0:01:18.4]} 37. Nxe7+ {[%clk
0:00:17.6]} 37... Rxe7 {[%clk 0:01:19.3]} 38. Ra3 {[%clk 0:00:16.7]} 38... Rd7
{[%clk 0:01:16.8]} 39. Kf3 {[%clk 0:00:16.4]} 39... Rxc4 {[%clk 0:01:15.9]} 40.
dxc4 {[%clk 0:00:16.1]} 40... Rxd2 {[%clk 0:01:16.8]} 41. Rxa5 {[%clk
0:00:16.3]} 41... Rxb2 {[%clk 0:01:17.2]} 42. Ke3 {[%clk 0:00:16.5]} 42... Rc2
{[%clk 0:01:16.8]} 43. c5 {[%clk 0:00:16.5]} 43... Kf7 {[%clk 0:01:16.9]} 44. f4
{[%clk 0:00:16.8]} 44... Rc3+ {[%clk 0:01:15.6]} 45. Ke4 {[%clk 0:00:14.8]}
45... exf4 {[%clk 0:01:13]} 46. Kxf4 {[%clk 0:00:14.5]} 46... g5+ {[%clk
0:01:13.1]} 47. Kf5 {[%clk 0:00:14.2]} 47... Rf3+ {[%clk 0:01:12.7]} 48. Ke4
{[%clk 0:00:14.6]} 48... Rxg3 {[%clk 0:01:13.5]} 49. c6 {[%clk 0:00:14.6]} 49...
Ke6 {[%clk 0:01:09.7]} 50. Ra8 {[%clk 0:00:11.6]} 50... Rc3 {[%clk 0:01:09.1]}
51. Rh8 {[%clk 0:00:11.3]} 51... Rxc6 {[%clk 0:01:06.4]} 52. Rxh5 {[%clk
0:00:11.3]} 52... Rc4+ {[%clk 0:01:07]} 53. Kf3 {[%clk 0:00:11.7]} 53... Kf5
{[%clk 0:01:06.4]} 54. Rh8 {[%clk 0:00:11.3]} 54... Rc3+ {[%clk 0:01:06.8]} 55.
Kg2 {[%clk 0:00:11.7]} 55... Kf4 {[%clk 0:01:07.4]} 56. Ra8 {[%clk 0:00:10.6]}
56... Rc2+ {[%clk 0:01:06.5]} 57. Kg1 {[%clk 0:00:11.2]} 57... Kg3 {[%clk
0:01:06.9]} 58. Ra3+ {[%clk 0:00:11.2]} 58... Kh4 {[%clk 0:01:06.9]} 59. Kh1
{[%clk 0:00:11.4]} 59... f5 {[%clk 0:01:07]} 60. Kg1 {[%clk 0:00:11.8]} 60... f4
{[%clk 0:01:07.7]} 61. Kh1 {[%clk 0:00:12.2]} 61... Re2 {[%clk 0:01:08.2]} 62.
Kg1 {[%clk 0:00:07.5]} 62... Re3 {[%clk 0:01:08.6]} 63. Ra5 {[%clk 0:00:06.1]}
63... Kxh3 {[%clk 0:01:07.2]} 64. Rxg5 {[%clk 0:00:05.4]} 64... Rg3+ {[%clk
0:01:07.7]} 65. Rxg3+ {[%clk 0:00:04.7]} 65... Kxg3 {[%clk 0:01:08.6]} 66. Kf1
{[%clk 0:00:03.1]} 66... Kf3 {[%clk 0:01:09.2]} 67. Kg1 {[%clk 0:00:03.6]} 67...
Ke2 {[%clk 0:01:09.9]} 68. Kh2 {[%clk 0:00:04.4]} 68... f3 {[%clk 0:01:10.8]}
69. Kh3 {[%clk 0:00:05.2]} 69... f2 {[%clk 0:01:11.7]} 70. Kh4 {[%clk
0:00:06.1]} 70... f1=Q {[%clk 0:01:12.6]} 0-1

[Event "Late-Titled-Tuesday-Blitz-February-20-2024"]
[Site "Chess.com"]
[Date "2024.02.20"]
[Round "2"]
[White "ValeriyGrinev"]
[Black "dretch"]
[Result "1-0"]
[WhiteElo "2564"]
[BlackElo "2888"]
[TimeControl "180+1"]
[EndTime "14:17:26 PST"]
[Termination "ValeriyGrinev won by checkmate"]

1. d4 {[%clk 0:03:00.9]} 1... d5 {[%clk 0:02:59.1]} 2. c4 {[%clk 0:03:00.8]}
2... c6 {[%clk 0:02:58.8]} 3. cxd5 {[%clk 0:03:01]} 3... cxd5 {[%clk 0:02:59.2]}
4. Bf4 {[%clk 0:03:01.2]} 4... Nc6 {[%clk 0:02:58.4]} 5. e3 {[%clk 0:03:01.3]}
5... Bf5 {[%clk 0:02:58.6]} 6. Nc3 {[%clk 0:03:01.3]} 6... e6 {[%clk 0:02:59]}
7. Qb3 {[%clk 0:02:57]} 7... Bb4 {[%clk 0:02:57.2]} 8. Bb5 {[%clk 0:02:55.7]}
8... Qa5 {[%clk 0:02:49.1]} 9. Bxc6+ {[%clk 0:02:54.3]} 9... bxc6 {[%clk
0:02:49.1]} 10. Ne2 {[%clk 0:02:55.2]} 10... Nf6 {[%clk 0:02:43.1]} 11. O-O
{[%clk 0:02:50.3]} 11... O-O {[%clk 0:02:39.6]} 12. Na4 {[%clk 0:02:48.5]} 12...
Ne4 {[%clk 0:02:34.5]} 13. Rfc1 {[%clk 0:02:44.2]} 13... Rfc8 {[%clk 0:02:16.5]}
14. f3 {[%clk 0:02:43.7]} 14... Nd2 {[%clk 0:02:14.9]} 15. Qd1 {[%clk
0:02:41.4]} 15... Nc4 {[%clk 0:02:09.3]} 16. e4 {[%clk 0:02:26.4]} 16... Bg6
{[%clk 0:02:03.2]} 17. a3 {[%clk 0:02:19.7]} 17... Bf8 {[%clk 0:01:49.9]} 18. b3
{[%clk 0:02:19.2]} 18... Nd6 {[%clk 0:01:39.8]} 19. Bxd6 {[%clk 0:02:06.3]}
19... Bxd6 {[%clk 0:01:39]} 20. Nc5 {[%clk 0:02:07.2]} 20... Qc7 {[%clk
0:01:34.3]} 21. e5 {[%clk 0:02:05.2]} 21... Be7 {[%clk 0:01:29.9]} 22. Qd2
{[%clk 0:01:51]} 22... h6 {[%clk 0:01:29.7]} 23. Rc3 {[%clk 0:01:41]} 23... a5
{[%clk 0:01:23.6]} 24. Rac1 {[%clk 0:01:40.8]} 24... Qb6 {[%clk 0:01:20.2]} 25.
Qe3 {[%clk 0:01:23.8]} 25... Bg5 {[%clk 0:01:18.3]} 26. f4 {[%clk 0:01:23.2]}
26... Be7 {[%clk 0:01:17.4]} 27. g4 {[%clk 0:01:17.3]} 27... Ra7 {[%clk
0:01:02.1]} 28. Ng3 {[%clk 0:01:16.1]} 28... Bh7 {[%clk 0:00:58.5]} 29. Rf1
{[%clk 0:01:08.4]} 29... Rb8 {[%clk 0:00:56.4]} 30. f5 {[%clk 0:01:06.8]} 30...
Bxc5 {[%clk 0:00:56.1]} 31. dxc5 {[%clk 0:01:07.2]} 31... Qd8 {[%clk 0:00:55.8]}
32. Ne2 {[%clk 0:01:02.1]} 32... h5 {[%clk 0:00:25.9]} 33. Nd4 {[%clk
0:00:56.8]} 33... Rc8 {[%clk 0:00:12.5]} 34. f6 {[%clk 0:00:56.9]} 34... hxg4
{[%clk 0:00:11.2]} 35. Qg5 {[%clk 0:00:48.6]} 35... Bg6 {[%clk 0:00:11.5]} 36.
Qxg4 {[%clk 0:00:42.9]} 36... Qf8 {[%clk 0:00:09.2]} 37. h4 {[%clk 0:00:35.5]}
37... Rb7 {[%clk 0:00:08.5]} 38. h5 {[%clk 0:00:35.2]} 38... Be4 {[%clk
0:00:08.7]} 39. Rg3 {[%clk 0:00:28]} 39... g6 {[%clk 0:00:06.1]} 40. hxg6 {[%clk
0:00:25.6]} 40... fxg6 {[%clk 0:00:04.8]} 41. Nxe6 {[%clk 0:00:24.5]} 41... Qh6
{[%clk 0:00:04.7]} 42. Rh3 {[%clk 0:00:22.1]} 42... Qd2 {[%clk 0:00:04.8]} 43.
f7+ {[%clk 0:00:18.2]} 43... Rxf7 {[%clk 0:00:04.4]} 44. Rxf7 {[%clk 0:00:18.8]}
44... Kxf7 {[%clk 0:00:03.8]} 45. Ng5+ {[%clk 0:00:18]} 45... Ke7 {[%clk
0:00:01.4]} 46. Rh7+ {[%clk 0:00:17.8]} 46... Kd8 {[%clk 0:00:01.8]} 47. Qd7#
{[%clk 0:00:17.8]} 1-0

[Event "Late-Titled-Tuesday-Blitz-February-20-2024"]
[Site "Chess.com"]
[Date "2024.02.20"]
[Round "2"]
[White "SchmakAttack"]
[Black "delqate"]
[Result "1-0"]
[WhiteElo "2817"]
[BlackElo "2520"]
[TimeControl "180+1"]
[EndTime "14:17:26 PST"]
[Termination "SchmakAttack won by resignation"]

1. e4 {[%clk 0:03:00.9]} 1... d5 {[%clk 0:03:00.2]} 2. exd5 {[%clk 0:02:59.8]}
2... Qxd5 {[%clk 0:03:01.1]} 3. Nc3 {[%clk 0:03:00]} 3... Qd8 {[%clk 0:03:01.3]}
4. d4 {[%clk 0:03:00.4]} 4... Nf6 {[%clk 0:03:00.8]} 5. Nf3 {[%clk 0:02:59.7]}
5... Bg4 {[%clk 0:03:00.6]} 6. h3 {[%clk 0:02:58.5]} 6... Bxf3 {[%clk 0:03:01]}
7. Qxf3 {[%clk 0:02:59.4]} 7... c6 {[%clk 0:03:01.7]} 8. Bd2 {[%clk 0:02:46]}
8... e6 {[%clk 0:03:01.8]} 9. O-O-O {[%clk 0:02:45.9]} 9... Nbd7 {[%clk
0:03:00.2]} 10. g4 {[%clk 0:02:44.1]} 10... Bb4 {[%clk 0:02:55.5]} 11. Kb1
{[%clk 0:02:33.6]} 11... a5 {[%clk 0:02:41.6]} 12. g5 {[%clk 0:02:30.6]} 12...
Nd5 {[%clk 0:02:41.1]} 13. Ne4 {[%clk 0:02:30.6]} 13... Qe7 {[%clk 0:02:01.6]}
14. c3 {[%clk 0:02:25.5]} 14... Bd6 {[%clk 0:02:00.2]} 15. c4 {[%clk 0:02:25.6]}
15... Nb4 {[%clk 0:01:57.1]} 16. a3 {[%clk 0:02:04.5]} 16... Na6 {[%clk
0:01:55.8]} 17. Bd3 {[%clk 0:01:53.4]} 17... a4 {[%clk 0:01:51.7]} 18. h4 {[%clk
0:01:50.7]} 18... Bc7 {[%clk 0:01:18.3]} 19. h5 {[%clk 0:01:41.7]} 19... O-O-O
{[%clk 0:01:15.6]} 20. Rhe1 {[%clk 0:01:31.1]} 20... e5 {[%clk 0:01:00.5]} 21.
c5 {[%clk 0:01:22.2]} 21... Nab8 {[%clk 0:00:42.3]} 22. Bc4 {[%clk 0:01:10.5]}
22... Rhf8 {[%clk 0:00:32.7]} 23. d5 {[%clk 0:00:56.9]} 23... cxd5 {[%clk
0:00:30.4]} 24. Bxd5 {[%clk 0:00:56.3]} 24... Nc6 {[%clk 0:00:22.1]} 25. Bxc6
{[%clk 0:00:43.4]} 25... bxc6 {[%clk 0:00:23]} 26. Nd6+ {[%clk 0:00:43.1]} 26...
Bxd6 {[%clk 0:00:20.4]} 27. cxd6 {[%clk 0:00:38.4]} 27... Qxd6 {[%clk
0:00:20.4]} 28. Ba5 {[%clk 0:00:32.9]} 28... Qe6 {[%clk 0:00:20.3]} 29. Bxd8
{[%clk 0:00:31.6]} 29... Rxd8 {[%clk 0:00:21.2]} 30. Re3 {[%clk 0:00:24.6]}
30... f5 {[%clk 0:00:20.5]} 31. gxf6 {[%clk 0:00:22.4]} 31... gxf6 {[%clk
0:00:21.4]} 32. Rc1 {[%clk 0:00:20.5]} 32... Kb7 {[%clk 0:00:20.5]} 33. Rec3
{[%clk 0:00:19.8]} 33... Rc8 {[%clk 0:00:19.4]} 34. Qe4 {[%clk 0:00:18.9]} 34...
Nb6 {[%clk 0:00:19.4]} 35. Qxh7+ {[%clk 0:00:19.1]} 35... Rc7 {[%clk 0:00:19.7]}
36. Qg6 {[%clk 0:00:18.2]} 36... Nd5 {[%clk 0:00:19.9]} 37. Rc4 {[%clk
0:00:18.8]} 37... Nf4 {[%clk 0:00:18.5]} 38. Qe4 {[%clk 0:00:17.8]} 38... Nxh5
{[%clk 0:00:16.6]} 39. Rxa4 {[%clk 0:00:18.2]} 39... Nf4 {[%clk 0:00:16.8]} 40.
Qb4+ {[%clk 0:00:17.9]} 40... Kc8 {[%clk 0:00:16.1]} 41. Rd1 {[%clk 0:00:18.5]}
41... Nd5 {[%clk 0:00:14.2]} 42. Qf8+ {[%clk 0:00:16.7]} 42... Kd7 {[%clk
0:00:14.4]} 43. Ra8 {[%clk 0:00:15.7]} 43... c5 {[%clk 0:00:08.2]} 44. Rd8+
{[%clk 0:00:12.6]} 44... Kc6 {[%clk 0:00:08.5]} 45. R8xd5 {[%clk 0:00:12.6]}
45... Qxd5 {[%clk 0:00:09.4]} 46. Qa8+ {[%clk 0:00:12.5]} 46... Rb7 {[%clk
0:00:08.7]} 47. Rxd5 {[%clk 0:00:12.8]} 1-0

[Event "Late-Titled-Tuesday-Blitz-February-20-2024"]
[Site "Chess.com"]
[Date "2024.02.20"]
[Round "2"]
[White "GothamChess"]
[Black "Fore_Man"]
[Result "1-0"]
[WhiteElo "2706"]
[BlackElo "2359"]
[TimeControl "180+1"]
[EndTime "14:17:27 PST"]
[Termination "GothamChess won by checkmate"]

1. e4 {[%clk 0:02:39.6]} 1... Nc6 {[%clk 0:02:59.7]} 2. Nc3 {[%clk 0:02:38.7]}
2... Nf6 {[%clk 0:02:59.1]} 3. f4 {[%clk 0:02:37.1]} 3... d6 {[%clk 0:02:57.8]}
4. Nf3 {[%clk 0:02:37.1]} 4... e5 {[%clk 0:02:53]} 5. Bb5 {[%clk 0:02:37.1]}
5... exf4 {[%clk 0:02:41.4]} 6. d4 {[%clk 0:02:33.2]} 6... Be7 {[%clk
0:02:41.2]} 7. Bxf4 {[%clk 0:02:31.9]} 7... a6 {[%clk 0:02:40.8]} 8. Bxc6+
{[%clk 0:02:28.3]} 8... bxc6 {[%clk 0:02:41.7]} 9. O-O {[%clk 0:02:28.4]} 9...
O-O {[%clk 0:02:41.5]} 10. h3 {[%clk 0:02:28.8]} 10... a5 {[%clk 0:02:38.1]} 11.
Re1 {[%clk 0:02:19.1]} 11... Rb8 {[%clk 0:02:34.5]} 12. b3 {[%clk 0:02:19.5]}
12... Nd7 {[%clk 0:02:32.3]} 13. e5 {[%clk 0:02:16.3]} 13... d5 {[%clk
0:02:30.1]} 14. a4 {[%clk 0:01:58.8]} 14... Nb6 {[%clk 0:02:29.6]} 15. Qe2
{[%clk 0:01:41.6]} 15... Bf5 {[%clk 0:02:25.6]} 16. Nd1 {[%clk 0:01:30.7]} 16...
Re8 {[%clk 0:02:17.7]} 17. Ne3 {[%clk 0:01:30.3]} 17... Be4 {[%clk 0:02:14.4]}
18. Nd2 {[%clk 0:01:28.1]} 18... Bg6 {[%clk 0:02:14.7]} 19. Nf3 {[%clk
0:01:23.7]} 19... Be4 {[%clk 0:02:12.8]} 20. Red1 {[%clk 0:01:23.6]} 20... Bb4
{[%clk 0:02:07.9]} 21. Qf2 {[%clk 0:01:20.6]} 21... Be7 {[%clk 0:01:59.2]} 22.
Qg3 {[%clk 0:01:20]} 22... Kh8 {[%clk 0:01:57.6]} 23. Kh1 {[%clk 0:01:19.4]}
23... Rc8 {[%clk 0:01:49.7]} 24. Ng5 {[%clk 0:01:18.2]} 24... Bg6 {[%clk
0:01:38.2]} 25. Rf1 {[%clk 0:01:11.3]} 25... h6 {[%clk 0:01:31.7]} 26. Nf3
{[%clk 0:01:10.3]} 26... c5 {[%clk 0:01:18.2]} 27. Rad1 {[%clk 0:01:04.8]} 27...
cxd4 {[%clk 0:01:17.7]} 28. Nxd4 {[%clk 0:01:05]} 28... Bc5 {[%clk 0:01:04.6]}
29. c3 {[%clk 0:01:02.6]} 29... Bxd4 {[%clk 0:01:01.5]} 30. cxd4 {[%clk
0:01:01.5]} 30... c5 {[%clk 0:01:02.1]} 31. Ng4 {[%clk 0:00:51.2]} 31... cxd4
{[%clk 0:00:56.4]} 32. Rxd4 {[%clk 0:00:50.2]} 32... Rc2 {[%clk 0:00:48.3]} 33.
Rf2 {[%clk 0:00:37.8]} 33... Qc8 {[%clk 0:00:44]} 34. Kh2 {[%clk 0:00:36.9]}
34... Rxf2 {[%clk 0:00:41.8]} 35. Qxf2 {[%clk 0:00:36.2]} 35... Qc2 {[%clk
0:00:37.4]} 36. Qh4 {[%clk 0:00:36.1]} 36... h5 {[%clk 0:00:20.1]} 37. Rd2
{[%clk 0:00:28.8]} 37... Qxb3 {[%clk 0:00:19.1]} 38. Rf2 {[%clk 0:00:28.2]}
38... Nc4 {[%clk 0:00:18.4]} 39. Bc1 {[%clk 0:00:12.7]} 39... Nxe5 {[%clk
0:00:13.2]} 40. Nxe5 {[%clk 0:00:10.9]} 40... Rxe5 {[%clk 0:00:14.1]} 41. Bb2
{[%clk 0:00:07.5]} 41... Re4 {[%clk 0:00:10.5]} 42. Qg5 {[%clk 0:00:07.5]} 42...
Qb8+ {[%clk 0:00:04.6]} 43. g3 {[%clk 0:00:05.2]} 43... Qe8 {[%clk 0:00:04.6]}
44. Qh6+ {[%clk 0:00:05.2]} 44... Bh7 {[%clk 0:00:03.9]} 45. Qxg7# {[%clk
0:00:06.1]} 1-0